bitfinex-derivatives/quotes_ETHF0:USTF0_20250426
["timestamp","ask_amount","ask_price","bid_price","bid_amount"]
[1745636660259,1.10508,1808.9,1808.8,3.648]
[1745636660455,1.6909,1809.1,1808.6,4.4486]
[1745636660456,1.10519,1808.7,1808.6,4.4486]
[1745636660654,1.10519,1808.7,1808.6,3.648]
[1745636661049,3.57259,1808.7,1808.6,3.648]
[1745636661458,7.4674,1808.7,1808.2,6.9126]
[1745636661657,1.10541,1808.4,1808.2,6.9126]
[1745636661859,2.73103,1808.3,1808.2,4.4496]
[1745636662051,1.6256,1808.3,1808.2,5.55509]
[1745636662251,1.6256,1808.3,1808.2,4.4496]
[1745636662447,1.6256,1808.3,1808.2,5.55509]
[1745636665061,1.6256,1808.3,1808.2,4.4496]
[1745636665256,1.6256,1808.3,1808.2,5.55509]
[1745636665959,1.6256,1808.3,1808.2,4.4496]
[1745636665960,2.73103,1808.3,1808.2,4.4496]
[1745636666157,2.73103,1808.3,1808.2,3.649]
[1745636666358,5.93883,1808.3,1808.2,3.649]
[1745636667663,1.10551,1808.2,1808.0,1.10558]
[1745636667861,1.10555,1808.1,1808.0,3.65]
[1745636668358,2.5349,1808.2,1807.8,62.012]
[1745636668565,2.85204,1808.0,1807.8,66.76771]
[1745636668765,4.0163,1808.1,1807.8,1.10571]
[1745636668766,1.7464,1807.9,1807.8,1.10571]
[1745636668956,4.9542,1807.9,1807.8,1.10571]
[1745636669156,4.9542,1807.9,1807.7,6.49307]
[1745636669157,6.05991,1807.9,1807.7,6.49307]
[1745636669356,1.7464,1807.8,1807.7,6.49307]
[1745636669762,1.1058,1807.7,1807.6,1.6438]
[1745636670070,1.1058,1807.7,1807.6,0.8062]
[1745636670071,4.3136,1807.7,1807.6,0.8062]
[1745636670366,3.2078,1807.7,1807.5,3.65]
[1745636670570,2.85226,1807.6,1807.4,2.84326]
[1745636670862,2.85232,1807.5,1807.3,13.78933672]
[1745636671066,1.7464,1807.5,1807.3,15.51863672]
[1745636671269,1.6837,1807.4,1807.3,8.12911]
[1745636671858,1.10587,1807.6,1807.4,1.10595]
[1745636672076,2.78957,1807.6,1807.4,2.83525]
[1745636672462,1.6837,1807.5,1807.4,2.83525]
[1745636673261,3.2078,1807.7,1807.4,1.7293]
[1745636673462,4.8915,1807.7,1807.6,1.10586]
[1745636674068,5.9973,1807.7,1807.5,2.83518]
[1745636675368,4.8915,1807.7,1807.6,1.10586]
[1745636675562,5.99731,1807.7,1807.5,2.83518]
[1745636676765,4.8915,1807.7,1807.6,1.10586]
[1745636676970,4.8915,1807.7,1807.6,2.77466]
[1745636677171,4.3135,1807.9,1807.7,1.10575]
[1745636677359,4.8359,1807.9,1807.8,1.10574]
[1745636677563,5.94158,1807.9,1807.8,2.84534]
[1745636677764,5.94158,1807.9,1807.8,1.7396]
[1745636678661,5.94158,1807.9,1807.7,1.95445]
[1745636678662,1.10574,1807.8,1807.7,0.8487]
[1745636678864,1.1058,1807.7,1807.6,3.65]
[1745636679066,1.1058,1807.7,1807.5,2.84548]
[1745636679267,1.6281,1807.6,1807.5,6.49548]
[1745636679467,1.6281,1807.6,1807.5,1.10588]
[1745636679674,2.73396,1807.6,1807.4,4.75594]
[1745636679973,2.734,1807.6,1807.4,4.75596]
[1745636680174,1.10603,1807.4,1807.2,1.1061]
[1745636680375,3.2078,1807.3,1807.2,1.1061]
[1745636680964,1.7408,1807.4,1807.3,1.10604]
[1745636681367,2.84678,1807.4,1807.2,1.10606]
[1745636681568,2.84678,1807.4,1807.3,1.10604]
[1745636681768,4.9486,1807.4,1807.3,1.10604]
[1745636682070,6.05458,1807.4,1807.3,1.10604]
[1745636682469,1.7408,1807.4,1807.3,1.10604]
[1745636683176,6.0546,1807.4,1807.2,1.10606]
[1745636683372,2.8468,1807.4,1807.2,1.10606]
[1745636683775,1.6595,1807.3,1807.1,1.6143]
[1745636683970,1.6595,1807.3,1807.2,1.1061]
[1745636685269,1.6595,1807.3,1807.2,6.4141]
[1745636686275,1.6595,1807.3,1807.2,1.1061]
[1745636687277,1.10596,1807.5,1807.3,1.10604]
[1745636687478,1.10598,1807.4,1807.3,1.10604]
[1745636688378,2.73496,1807.5,1807.3,1.10604]
[1745636688976,2.73503,1807.4,1807.2,1.10607]
[1745636689178,1.629,1807.3,1807.2,1.10607]
[1745636689770,2.73504,1807.3,1807.2,1.10607]
[1745636689971,2.73504,1807.3,1807.2,1.1061]
[1745636690172,1.629,1807.3,1807.2,1.1061]
[1745636690879,2.73504,1807.3,1807.2,1.1061]
[1745636691475,2.73504,1807.3,1807.1,1.10612]
[1745636691678,1.6669,1807.2,1807.1,1.10612]
[1745636691871,2.773,1807.2,1807.1,1.10612]
[1745636692274,1.10617,1807.1,1807.0,2.71978]
[1745636692469,1.6943,1807.1,1807.0,2.71978]
[1745636693181,1.6943,1807.1,1807.0,8.02778]
[1745636694076,2.80047,1807.1,1807.0,6.9216]
[1745636695176,2.80047,1807.1,1807.0,5.308]
[1745636695376,6.00827,1807.1,1807.0,5.308]
[1745636696181,1.10623,1807.0,1806.8,4.7583]
[1745636696476,1.10639,1806.8,1806.6,4.9238]
[1745636696681,3.2078,1806.9,1806.7,4.75839]
[1745636696985,1.10641,1806.7,1806.6,1.716]
[1745636697586,1.6791,1806.7,1806.6,2.82247]
[1745636698286,4.31409,1806.9,1806.8,1.10635]
[1745636698486,6.01079,1806.9,1806.7,1.10636]
[1745636698783,1.6967,1806.8,1806.7,2.72346]
[1745636699179,1.6967,1806.8,1806.7,8.03146]
[1745636699878,2.80305,1806.8,1806.7,6.9251]
[1745636700187,2.80305,1806.8,1806.7,5.308]
[1745636701584,7.80305,1806.8,1806.7,5.308]
[1745636702185,6.6967,1806.8,1806.5,1.10653]
[1745636702385,6.4725,1806.7,1806.4,4.4627]
[1745636702587,1.6298,1806.6,1806.4,4.4627]
[1745636702788,2.73629,1806.6,1806.4,5.56926]
[1745636702985,2.73629,1806.6,1806.5,1.10653]
[1745636703186,1.10649,1806.6,1806.5,1.10653]
[1745636703589,1.10649,1806.6,1806.4,10.87725]
[1745636704089,5.94916,1806.7,1806.5,1.10653]
[1745636704290,4.8427,1806.7,1806.6,1.10647]
[1745636704489,3.2078,1806.7,1806.6,1.10647]
[1745636705585,3.2078,1806.7,1806.6,2.74067]
[1745636706183,4.31421,1806.7,1806.6,1.6342]
[1745636706387,4.31421,1806.7,1806.6,1.10647]
[1745636707189,1.10647,1806.6,1806.5,6.41448]
[1745636708277,1.10647,1806.6,1806.5,5.308]
[1745636708695,1.90017,1806.6,1806.5,5.308]
[1745636712294,0.7937,1806.6,1806.5,6.41453]
[1745636712484,0.7937,1806.6,1806.5,7.27363]
[1745636712686,0.7937,1806.6,1806.5,8.85673]
[1745636712886,0.7937,1806.6,1806.5,7.7502]
[1745636713092,3.2078,1806.7,1806.5,7.7502]
[1745636713295,4.31423,1806.7,1806.6,1.10647]
[1745636713795,4.31423,1806.7,1806.5,8.85668]
[1745636714497,1.10647,1806.6,1806.5,7.7502]
[1745636714996,1.10647,1806.6,1806.5,6.1671]
[1745636715195,1.10647,1806.6,1806.5,5.308]
[1745636715497,3.2078,1806.7,1806.5,6.4145]
[1745636715793,3.2078,1806.7,1806.6,1.10647]
[1745636715993,4.31424,1806.7,1806.5,6.41449]
[1745636716393,1.10647,1806.6,1806.5,5.308]
[1745636716695,5.16556,1806.7,1806.5,7.27891]
[1745636716903,1.10647,1806.6,1806.5,6.1724]
[1745636717492,1.10647,1806.6,1806.5,5.308]
[1745636718591,4.0591,1806.7,1806.5,6.41451]
[1745636718791,1.635,1806.6,1806.5,8.93571]
[1745636719195,2.74147,1806.6,1806.5,6.1443]
[1745636720300,2.74147,1806.6,1806.5,5.308]
[1745636721098,1.10659,1806.4,1806.3,0.8009]
[1745636721292,3.2078,1806.4,1806.2,2.4896]
[1745636721494,3.2078,1806.4,1806.2,0.8675]
[1745636721495,1.6272,1806.3,1806.2,0.8675]
[1745636722201,2.73385,1806.3,1806.2,6.1755]
[1745636722394,4.31442,1806.4,1806.2,7.28218]
[1745636722591,1.6272,1806.3,1806.2,7.28218]
[1745636722991,1.6272,1806.3,1806.2,8.99248]
[1745636723299,2.73385,1806.3,1806.2,7.8858]
[1745636724000,3.2078,1806.4,1806.3,1.10665]
[1745636724191,3.2078,1806.4,1806.3,3.63935]
[1745636725297,3.2078,1806.4,1806.3,8.94735]
[1745636726403,5.90467,1806.6,1806.4,1.10655]
[1745636726603,4.7982,1806.6,1806.5,1.10653]
[1745636726799,1.5904,1806.6,1806.5,1.95203]
[1745636727303,2.69687,1806.6,1806.5,6.1535]
[1745636728101,5.90467,1806.6,1806.5,6.1535]
[1745636728301,2.69687,1806.6,1806.5,6.1535]
[1745636729202,2.69687,1806.6,1806.5,7.26003]
[1745636730505,5.90467,1806.6,1806.5,5.308]
[1745636730709,5.90467,1806.6,1806.5,6.1567]
[1745636730894,5.90467,1806.6,1806.5,7.8866]
[1745636731608,5.90467,1806.6,1806.5,5.308]
[1745636731809,1.10655,1806.5,1806.3,8.99321]
[1745636732010,1.10659,1806.4,1806.3,6.1567]
[1745636732710,2.72639,1806.4,1806.3,6.1567]
[1745636733500,1.6198,1806.4,1806.3,7.26335]
[1745636733705,1.6198,1806.4,1806.3,8.98795]
[1745636736005,4.31369,1807.6,1806.5,2.76634]
[1745636736204,1.5855,1807.5,1807.4,1.10598]
[1745636736512,0.43871793,1807.9,1807.4,3.2078]
[1745636736513,3.2078,1807.9,1807.4,3.2078]
[1745636736709,3.2078,1808.1,1807.6,3.2078]
[1745636737015,3.2078,1807.7,1807.5,0.8577]
[1745636737309,3.2078,1807.7,1807.6,1.10586]
[1745636737514,3.2078,1807.7,1807.5,1.96358]
[1745636737715,3.2078,1807.7,1807.5,0.8577]
[1745636738215,3.2078,1807.7,1807.6,1.10586]
[1745636739015,3.2078,1808.1,1808.0,1.10561]
[1745636739913,4.4835,1808.4,1807.7,4.9502]
[1745636739914,3.2078,1808.3,1807.7,4.9502]
[1745636740118,3.2078,1808.3,1808.2,1.10546]
[1745636741717,3.2078,1808.6,1808.1,5.97164]
[1745636742018,3.2078,1808.6,1808.5,1.10531]
[1745636743217,10.18493,1808.8,1808.5,1.10531]
[1745636744312,15.49293,1808.8,1808.5,1.10531]
[1745636745121,3.2078,1808.6,1808.2,6.1871]
[1745636745419,3.2078,1808.6,1808.5,1.10531]
[1745636747522,0.8105,1808.7,1808.6,1.10525]
[1745636748820,2.5357,1808.7,1808.6,1.10525]
[1745636749022,2.5357,1808.7,1808.5,1.10526]
[1745636749222,2.5357,1808.7,1808.6,1.10525]
[1745636749723,3.2078,1808.8,1808.7,1.10519]
[1745636749914,4.933,1808.8,1808.7,1.10519]
[1745636750510,3.2078,1809.0,1808.9,1.10506]
[1745636750711,4.8376,1809.0,1808.9,1.10506]
[1745636752121,4.8376,1809.0,1808.7,1.6884]
[1745636752324,1.10508,1808.9,1808.7,1.96207]
[1745636752518,1.6298,1808.8,1808.7,1.96207]
[1745636752716,1.6298,1808.8,1808.7,0.8569]
[1745636753118,1.6298,1808.8,1808.7,1.96209]
[1745636754522,1.6298,1808.8,1808.7,0.8569]
[1745636754723,1.6298,1808.8,1808.7,1.96209]
[1745636755929,4.8376,1808.8,1808.5,5.3071]
[1745636756225,1.10525,1808.6,1808.5,5.308]
[1745636757027,2.78505,1808.6,1808.5,5.308]
[1745636757232,1.10538,1808.4,1808.2,4.31325]
[1745636757530,1.6798,1808.3,1808.2,4.31325]
[1745636757928,1.6798,1808.3,1808.0,6.45476]
[1745636758227,3.2078,1808.2,1808.0,6.45476]
[1745636758530,4.3133,1808.2,1808.0,6.45476]
[1745636758731,1.6798,1808.1,1808.0,6.45476]
[1745636760127,3.2078,1808.2,1808.1,1.10555]
[1745636760334,1.10482,1809.3,1809.1,1.1049]
[1745636760522,1.7325,1809.3,1808.9,3.648]
[1745636760729,1.6305,1809.7,1809.2,3.2078]
[1745636760927,0.7995,1810.2,1809.5,2.76175]
[1745636761135,1.7325,1810.0,1809.9,1.10445]
[1745636761330,1.7325,1810.2,1810.0,1.10438]
[1745636761530,3.2078,1810.1,1809.7,3.2078]
[1745636761732,1.7325,1810.0,1809.7,5.97664]
[1745636762027,1.7325,1810.0,1809.8,1.10451]
[1745636762429,3.2078,1810.3,1809.7,4.8721]
[1745636762631,1.7426,1810.2,1810.1,1.10431]
[1745636764728,1.7426,1810.2,1810.1,4.31211]
[1745636765737,1.7426,1810.2,1810.1,4.31213]
[1745636766434,3.2078,1810.5,1810.1,3.2078]
[1745636766631,1.7362,1810.3,1810.1,3.2078]
[1745636767034,2.84042,1810.3,1810.1,3.2078]
[1745636767237,1.10427,1810.2,1810.0,1.7334]
[1745636767432,1.7362,1810.1,1810.0,1.7334]
[1745636768130,6.7362,1810.1,1809.6,4.0246]
[1745636768335,3.2078,1809.9,1809.4,6.9038]
[1745636768535,1.10461,1809.7,1809.4,8.00854]
[1745636768735,1.6078,1809.6,1809.4,8.00854]
[1745636768931,1.6078,1809.6,1809.5,1.1047]
[1745636769134,1.6078,1809.8,1809.6,1.10458]
[1745636769335,1.6078,1809.8,1809.7,1.10458]
[1745636769745,6.97635,1810.1,1809.8,1.10447]
[1745636769942,3.2078,1810.2,1809.9,2.79955]
[1745636769943,1.6078,1810.0,1809.9,2.79955]
[1745636770144,1.6078,1810.0,1809.9,1.6951]
[1745636770646,1.6078,1810.0,1809.9,2.79955]
[1745636770838,1.10425,1810.3,1809.9,1.6951]
[1745636771141,2.71205,1810.3,1810.0,1.10436]
[1745636771341,1.10429,1810.2,1810.0,1.10436]
[1745636771543,1.6803,1810.1,1810.0,2.74906]
[1745636772047,2.78453,1810.3,1810.1,1.10433]
[1745636772248,1.6803,1810.3,1810.0,1.6447]
[1745636772445,1.6803,1810.3,1810.1,1.10428]
[1745636772746,1.6803,1810.3,1810.2,1.6447]
[1745636773245,1.6803,1810.3,1810.0,4.31216]
[1745636773444,1.10431,1810.2,1810.0,1.10436]
[1745636773645,1.6803,1810.1,1810.0,1.10436]
[1745636776153,6.9038,1810.4,1809.9,4.40582]
[1745636776345,8.00797,1810.4,1810.2,1.10424]
[1745636776545,1.7291,1810.3,1810.2,1.10424]
[1745636776854,3.2078,1810.6,1810.5,1.10408]
[1745636777047,4.9369,1810.6,1810.5,1.10408]
[1745636777355,7.0371,1810.6,1810.5,1.10408]
[1745636778352,1.7291,1810.6,1810.5,1.10408]
[1745636778949,2.83313,1810.6,1810.4,2.7953]
[1745636779855,1.7291,1810.6,1810.5,1.10409]
[1745636780355,1.7291,1810.6,1810.4,1.6912]
[1745636780545,2.83316,1810.6,1810.4,1.10414]
[1745636780746,1.7291,1810.6,1810.4,1.10414]
[1745636781150,7.0371,1810.6,1810.4,1.5876]
[1745636781348,7.0371,1810.6,1810.5,1.10409]
[1745636782147,1.7291,1810.6,1810.5,1.10409]
[1745636782645,1.7291,1810.6,1810.4,1.5876]
[1745636782855,2.83314,1810.6,1810.4,2.6917]
[1745636783156,1.10415,1810.4,1810.3,6.9028]
[1745636783356,1.10415,1810.4,1810.3,3.695]
[1745636783552,7.69702,1810.6,1810.1,4.9228]
[1745636783758,1.5887,1810.3,1810.1,3.2078]
[1745636784052,3.2078,1811.0,1810.4,2.76031]
[1745636784356,1.5887,1811.0,1810.9,1.10384]
[1745636784659,3.2078,1811.2,1811.1,1.10372]
[1745636784843,4.7965,1811.2,1811.1,1.10372]
[1745636785255,5.90018,1811.2,1811.0,1.10377]
[1745636785647,4.7965,1811.2,1811.0,1.10377]
[1745636785850,4.7965,1811.2,1811.1,1.10372]
[1745636786256,1.5887,1811.2,1811.1,1.10372]
[1745636786742,2.69238,1811.2,1810.9,2.81879]
[1745636786948,1.5887,1811.2,1811.0,1.10376]
[1745636787151,1.5887,1811.2,1811.1,1.10372]
[1745636787350,4.3113,1811.5,1811.2,1.10363]
[1745636787551,1.5933,1811.4,1811.3,1.1036]
[1745636788254,2.69688,1811.4,1811.2,3.2078]
[1745636788657,1.1036,1811.3,1811.1,1.7059]
[1745636788856,1.5933,1811.2,1811.1,1.10372]
[1745636789254,1.5933,1811.2,1811.0,8.85945]
[1745636789255,2.69697,1811.2,1811.0,8.85945]
[1745636789455,1.5933,1811.2,1811.0,8.85945]
[1745636789854,1.5933,1811.2,1811.1,1.10372]
[1745636791158,4.31132,1811.5,1811.3,1.1036]
[1745636791358,2.79397,1811.4,1811.2,4.31143]
[1745636791658,1.1036,1811.3,1811.2,4.31143]
[1745636791856,1.1036,1811.3,1811.2,3.2078]
[1745636792556,1.1036,1811.3,1811.1,2.70618]
[1745636792754,1.5942,1811.2,1811.0,4.5479]
[1745636793053,2.6979,1811.2,1811.0,4.5479]
[1745636793448,1.5942,1811.2,1811.1,1.10372]
[1745636794056,1.5942,1811.2,1811.1,1.7279]
[1745636794256,6.9022,1811.2,1811.1,2.83162]
[1745636794661,8.00586,1811.2,1811.1,1.7279]
[1745636794864,8.00586,1811.2,1811.0,8.85944]
[1745636795160,2.69786,1811.2,1811.0,8.85944]
[1745636795762,1.5942,1811.2,1811.1,1.10372]
[1745636796252,6.9022,1811.2,1811.1,2.68592]
[1745636796454,8.00586,1811.2,1811.1,1.5822]
[1745636796651,8.00586,1811.2,1811.0,8.85944]
[1745636796863,8.00586,1811.2,1811.0,5.65164]
[1745636797362,1.5942,1811.2,1811.1,1.10372]
[1745636797867,1.5942,1811.2,1811.1,2.68592]
[1745636800363,2.69788,1811.2,1811.0,5.65163]
[1745636800755,1.5942,1811.2,1811.0,5.65163]
[1745636800950,2.69788,1811.2,1811.0,5.65163]
[1745636801149,1.10372,1811.1,1811.0,4.5479]
[1745636801360,1.7289,1811.1,1811.0,5.65168]
[1745636803065,1.10364,1811.3,1811.0,4.5479]
[1745636803266,1.10364,1811.3,1811.1,2.70457]
[1745636804165,1.6372,1811.2,1811.1,2.70457]
[1745636806267,6.9452,1811.2,1811.1,2.70457]
[1745636806858,8.04886,1811.2,1811.1,1.6009]
[1745636807065,8.04886,1811.2,1811.0,3.694]
[1745636807066,1.10372,1811.1,1811.0,3.694]
[1745636807365,1.10378,1811.0,1810.9,4.82881]
[1745636807569,2.69007,1811.1,1810.9,4.82881]
[1745636807760,1.10384,1810.9,1810.8,3.2078]
[1745636807961,8.37894,1811.1,1810.6,7.7588]
[1745636808161,2.69755,1810.8,1810.7,1.10397]
[1745636808363,1.1038,1811.0,1810.8,1.10387]
[1745636808570,1.5936,1811.0,1810.9,1.10384]
[1745636808766,5.308,1811.1,1811.0,1.10378]
[1745636808966,6.9016,1811.1,1811.0,1.10378]
[1745636809168,1.5936,1811.1,1811.0,1.10378]
[1745636809569,4.571,1811.4,1811.1,1.10371]
[1745636809570,1.10363,1811.3,1811.1,1.10371]
[1745636809767,1.10366,1811.2,1811.0,6.86454]
[1745636811377,1.10372,1811.1,1811.0,5.7608]
[1745636811681,2.70292,1811.1,1811.0,5.7608]
[1745636811881,2.70292,1811.1,1811.0,3.2078]
[1745636812076,2.70292,1811.1,1810.9,3.725]
[1745636812077,1.10378,1811.0,1810.9,3.725]
[1745636812380,2.70298,1811.0,1810.9,3.725]
[1745636813185,8.01098,1811.0,1810.9,3.725]
[1745636813682,1.1039,1810.8,1810.7,6.9328]
[1745636814394,6.4119,1810.8,1810.7,6.9328]
[1745636816192,1.1039,1810.8,1810.7,6.9328]
[1745636816790,1.10651152,1810.8,1810.7,6.9328]
[1745636817290,6.41451152,1810.8,1810.7,6.9328]
[1745636818292,1.10651152,1810.8,1810.7,6.9328]
[1745636819690,2.69581152,1810.8,1810.7,6.9328]
[1745636820993,2.69581152,1810.8,1810.7,3.2078]
[1745636821191,8.00381152,1810.8,1810.7,3.2078]
[1745636821893,3.2078,1810.4,1808.4,7.38952672]
[1745636822197,3.2078,1809.0,1808.4,9.06612672]
[1745636822494,4.31311,1808.5,1808.4,12.27392672]
[1745636822889,4.31311,1808.5,1808.4,9.06612672]
[1745636823092,9.62111,1808.5,1808.4,7.38952672]
[1745636823896,9.62111,1808.5,1808.3,11.08429008]
[1745636823897,1.10537,1808.4,1808.3,11.08429008]
[1745636824200,1.10543,1808.3,1808.2,14.77905344]
[1745636824391,4.31323,1808.3,1808.2,14.77905344]
[1745636824793,1.10561,1808.1,1807.9,2.571]
[1745636825088,3.2078,1808.2,1807.9,5.7788]
[1745636825287,4.31329,1808.2,1807.9,5.7788]
[1745636827092,1.10557,1808.1,1807.9,5.7788]
[1745636827289,3.2078,1808.0,1807.9,5.7788]
[1745636827790,4.31341,1808.0,1807.9,10.7788]
[1745636828997,4.31341,1808.0,1807.9,4.9115]
[1745636830189,9.62141,1808.0,1807.9,4.9115]
[1745636830999,1.10586,1807.6,1807.5,3.2078]
[1745636831190,3.2078,1808.0,1807.5,9.62169]
[1745636831390,1.10574,1807.8,1807.5,9.62169]
[1745636831790,1.10574,1807.8,1807.5,14.62169]
[1745636831998,1.1057,1807.9,1807.6,1.10584]
[1745636832598,1.10575,1807.8,1807.6,1.10584]
[1745636832990,1.10572,1807.9,1807.6,6.10584]
[1745636833189,1.10576,1807.8,1807.6,1.10584]
[1745636833390,1.1058,1807.7,1807.5,9.62168]
[1745636833696,1.10579,1807.8,1807.5,9.62168]
[1745636833999,1.10579,1807.8,1807.6,1.10586]
[1745636834190,1.10579,1807.8,1807.6,2.72186]
[1745636834391,1.10573,1807.9,1807.6,2.72186]
[1745636834591,1.10568,1807.9,1807.7,1.616]
[1745636834792,1.10574,1807.8,1807.7,1.616]
[1745636835088,1.10574,1807.8,1807.7,6.924]
[1745636836703,1.10571,1807.9,1807.7,8.02978]
[1745636837991,1.10574,1807.8,1807.7,6.924]
[1745636839107,1.10574,1807.8,1807.7,1.616]
[1745636839108,4.31354,1807.8,1807.7,1.616]
[1745636839905,4.31354,1807.8,1807.4,5.12594]
[1745636839906,1.10592,1807.5,1807.4,4.02]
[1745636840098,1.10592,1807.5,1807.4,5.308]
[1745636841303,1.10598,1807.4,1807.3,1.7257]
[1745636841504,4.31378,1807.4,1807.3,1.7257]
[1745636844704,1.10598,1807.4,1807.3,1.7257]
[1745636845101,4.31378,1807.4,1807.3,1.7257]
[1745636846596,1.10604,1807.3,1807.2,0.8493]
[1745636846796,1.10604,1807.3,1807.2,2.5576]
[1745636847307,1.10604,1807.3,1807.2,5.308]
[1745636847511,2.85524,1807.3,1807.2,5.308]
[1745636848810,2.85524,1807.3,1807.2,6.939]
[1745636850711,6.06304,1807.3,1807.2,6.939]
[1745636852208,6.06304,1807.3,1807.2,5.308]
[1745636853311,1.10614,1807.2,1807.0,2.72391]
[1745636853709,1.10614,1807.2,1807.0,3.51531]
[1745636854210,1.10614,1807.2,1807.0,8.82331]
[1745636855208,1.10617,1807.1,1807.0,8.82331]
[1745636856010,1.10617,1807.1,1807.0,7.7171]
[1745636856701,1.10617,1807.1,1807.0,8.82333]
[1745636857511,1.10617,1807.1,1807.0,7.7171]
[1745636858408,1.10617,1807.1,1807.0,5.308]
[1745636858720,7.70847,1807.1,1807.0,3.38920901]
[1745636858909,8.54147,1807.1,1807.0,2.21279901]
[1745636859210,2.7658,1806.9,1806.3,2.87691]
[1745636859409,3.2078,1806.6,1806.3,4.56581]
[1745636859612,1.10659,1806.4,1806.3,3.4592]
[1745636860210,1.10659,1806.4,1806.3,8.7672]
[1745636860411,1.10659,1806.4,1806.3,9.87385]
[1745636860605,1.6023,1806.5,1806.4,1.10659]
[1745636860806,1.6023,1806.5,1806.4,2.80759]
[1745636861106,1.6023,1806.5,1806.4,8.11559]
[1745636861308,3.2078,1806.6,1806.5,1.10653]
[1745636861503,3.2078,1806.6,1806.5,2.80753]
[1745636862101,1.7186,1806.8,1806.7,1.10641]
[1745636862306,1.7186,1806.8,1806.5,7.009]
[1745636862307,3.2078,1806.9,1806.8,1.10635]
[1745636863213,3.2078,1806.9,1806.8,6.41435]
[1745636863606,3.2078,1807.1,1807.0,1.10623]
[1745636864118,4.8041,1807.1,1807.0,6.41423]
[1745636864308,3.2078,1807.1,1807.0,6.41423]
[1745636865411,4.31397,1807.1,1807.0,5.308]
[1745636865715,5.91027,1807.1,1807.0,6.41423]
[1745636865915,5.91027,1807.1,1807.0,5.308]
[1745636867007,5.91027,1807.1,1807.0,6.41423]
[1745636867207,4.8041,1807.1,1807.0,6.41423]
[1745636867403,3.2078,1807.1,1807.0,6.41423]
[1745636867606,3.2078,1807.1,1807.0,5.308]
[1745636867812,6.04017,1807.1,1807.0,6.41423]
[1745636868013,6.04017,1807.1,1807.0,8.04363]
[1745636868914,6.04017,1807.1,1807.0,6.9374]
[1745636869515,6.04017,1807.1,1807.0,5.308]
[1745636869715,6.04017,1807.1,1807.0,6.41423]
[1745636870307,4.934,1807.1,1807.0,6.41423]
[1745636871813,1.7262,1807.1,1807.0,6.41423]
[1745636872116,6.04017,1807.1,1807.0,6.41423]
[1745636873312,6.04017,1807.1,1807.0,5.308]
[1745636877318,6.04017,1807.1,1806.9,1.10625]
[1745636879113,6.04017,1807.1,1806.9,6.41425]
[1745636880220,1.10623,1807.0,1806.9,1.10625]
[1745636880420,2.76793,1807.0,1806.9,1.10625]
[1745636880821,2.76793,1807.0,1806.8,6.7474]
[1745636881122,2.76793,1807.0,1806.9,6.41429]
[1745636881613,2.76793,1807.0,1806.9,5.308]
[1745636883012,2.76793,1807.0,1806.9,6.41429]
[1745636883619,1.6617,1807.0,1806.9,6.41429]
[1745636883930,2.76793,1807.0,1806.9,8.07159]
[1745636884118,2.76793,1807.0,1806.9,5.308]
[1745636884623,3.61683,1807.0,1806.9,5.308]
[1745636887018,6.82463,1807.0,1806.9,5.308]
[1745636888830,3.2078,1807.0,1806.9,6.41429]
[1745636890122,3.2078,1807.0,1806.9,5.308]
[1745636890427,6.77913,1807.0,1806.9,5.308]
[1745636892633,3.2078,1807.0,1806.9,6.41429]
[1745636893531,1.5903,1807.1,1807.0,1.10623]
[1745636893728,1.5903,1807.1,1807.0,4.40943]
[1745636894229,1.5903,1807.1,1807.0,9.71743]
[1745636895431,4.31394,1807.2,1807.0,9.71743]
[1745636896326,4.31394,1807.2,1807.0,4.40943]
[1745636896841,4.31394,1807.2,1807.0,4.41185181]
[1745636897727,1.10617,1807.1,1807.0,3.30562181]
[1745636897927,2.72607,1807.1,1807.0,3.30562181]
[1745636898337,2.72607,1807.1,1807.0,8.61362181]
[1745636899037,1.6199,1807.1,1807.0,9.71985181]
[1745636899236,1.6199,1807.1,1807.0,6.41665181]
[1745636899437,2.72607,1807.1,1807.0,5.31042181]
[1745636903342,2.72607,1807.1,1807.0,6.41665181]
[1745636903637,2.72607,1807.1,1807.0,8.02575181]
[1745636903829,1.6199,1807.1,1807.0,8.02575181]
[1745636904741,4.31394,1807.2,1807.0,8.02575181]
[1745636905237,3.2078,1807.2,1807.1,1.10617]
[1745636905434,3.2078,1807.2,1807.1,1.95247]
[1745636906639,4.3139,1807.2,1807.1,0.8463]
[1745636906827,5.9187,1807.2,1807.1,0.8463]
[1745636907536,1.10617,1807.1,1807.0,1.61152181]
[1745636907842,2.71097,1807.1,1807.0,2.71775181]
[1745636908033,1.6048,1807.1,1807.0,2.71775181]
[1745636908238,2.71097,1807.1,1807.0,0.00242181]
[1745636909137,2.71097,1807.1,1807.0,5.31042181]
[1745636909338,1.6048,1807.1,1807.0,6.41665181]
[1745636909729,2.71097,1807.1,1807.0,6.41665181]
[1745636909931,1.6048,1807.1,1807.0,6.41665181]
[1745636910336,4.31394,1807.2,1807.0,6.41665181]
[1745636910643,3.2078,1807.2,1807.1,2.81417]
[1745636911133,4.816,1807.5,1807.4,1.10598]
[1745636911337,3.2078,1807.5,1807.4,1.10598]
[1745636912032,4.31372,1807.5,1807.4,1.10598]
[1745636912238,4.31372,1807.5,1807.3,2.7817]
[1745636912739,4.31372,1807.5,1807.4,2.78168]